bitfinex-derivatives/quotes_ETHF0:USTF0_20250620
["timestamp","ask_amount","ask_price","bid_price","bid_amount"]
[1750431454041,0.80161,2494.8,2494.7,0.8016]
[1750431454244,5.21172,2494.9,2494.3,3.2078]
[1750431454453,0.80171,2494.5,2494.4,0.80169]
[1750431454748,0.80164,2494.8,2494.7,0.80162]
[1750431454944,1.17762236,2494.8,2494.4,2.00432]
[1750431455141,0.80168,2494.6,2494.5,0.80167]
[1750431455349,1.97928236,2494.6,2494.5,0.80167]
[1750431456151,0.80171,2494.5,2494.4,0.80169]
[1750431456347,1.17762236,2494.5,2494.4,0.80173]
[1750431456547,27.103,2494.5,2494.4,3.2078]
[1750431456752,1.17890601,2494.5,2494.4,4.00953]
[1750431456953,27.099,2494.6,2494.5,0.80169]
[1750431457163,28.27796404,2494.6,2494.5,2.08759]
[1750431457354,27.099,2494.6,2494.5,2.08759]
[1750431457969,27.099,2494.6,2494.5,0.80169]
[1750431458164,0.80179,2494.3,2494.2,0.80174]
[1750431458459,2.31102183,2495.0,2494.2,11.1058]
[1750431458653,3.2078,2495.6,2494.7,3.2078]
[1750431458859,2.00316,2495.9,2494.7,3.2078]
[1750431458860,3.2078,2495.9,2495.3,3.2078]
[1750431459060,3.08136244,2496.2,2495.6,3.2078]
[1750431459061,2.00288,2496.2,2495.6,3.2078]
[1750431459361,2.08308499,2496.1,2495.6,3.2078]
[1750431459665,2.23442499,2496.1,2496.0,0.80121]
[1750431459865,0.80123,2496.0,2495.9,0.80123]
[1750431461062,0.80127,2495.9,2495.8,0.80127]
[1750431461257,27.095,2495.9,2495.8,0.80128]
[1750431461861,27.095,2495.9,2495.6,3.2078]
[1750431462062,0.80131,2495.7,2495.6,3.2078]
[1750431462261,2.1107,2495.8,2495.7,0.80131]
[1750431462462,27.095,2495.9,2495.8,0.80128]
[1750431462755,27.89624,2495.9,2495.8,0.80128]
[1750431463363,0.80136,2495.6,2495.5,0.80136]
[1750431463663,27.095,2495.9,2494.8,11.57133103]
[1750431463664,0.80145,2495.3,2495.2,0.80146]
[1750431463864,0.80145,2495.3,2494.8,0.80158]
[1750431463865,13.1084,2495.3,2494.8,0.80158]
[1750431464167,0.80158,2494.9,2494.8,0.80158]
[1750431464368,13.10844,2495.3,2494.7,3.2078]
[1750431464369,0.8016,2494.8,2494.7,3.2078]
[1750431464555,0.80159,2494.9,2494.8,0.80157]
[1750431464761,0.8016,2494.8,2494.7,3.2078]
[1750431465265,27.8686,2494.8,2494.7,4.00941]
[1750431465667,27.8686,2494.8,2494.7,3.2078]
[1750431465863,27.8686,2494.8,2494.7,4.00943]
[1750431466562,27.067,2494.8,2494.7,4.00943]
[1750431466968,0.8016,2494.8,2494.7,3.2078]
[1750431467171,0.8016,2494.8,2494.7,4.00943]
[1750431467368,1.3512,2495.2,2494.7,3.2078]
[1750431467567,27.066,2495.4,2495.3,0.80144]
[1750431467767,27.066,2495.4,2495.0,3.2078]
[1750431467975,0.80149,2495.2,2495.1,0.80148]
[1750431468168,27.86742,2495.4,2495.3,0.80144]
[1750431468367,2.0036,2495.3,2494.8,1.3241]
[1750431468568,0.80163,2494.7,2494.6,3.2078]
[1750431468773,27.87263,2494.7,2494.6,3.2078]
[1750431469268,29.18533,2494.7,2494.6,3.2078]
[1750431469572,38.5956,2494.7,2494.0,4.498]
[1750431469770,38.5956,2494.7,2493.7,2.00483]
[1750431469771,0.80187,2494.0,2493.7,3.2078]
[1750431470068,3.2078,2494.1,2493.3,3.8425]
[1750431470367,5.21182,2494.8,2494.0,3.2078]
[1750431470570,5.21182,2494.8,2494.3,0.80173]
[1750431470571,4.5205,2494.8,2494.3,0.80173]
[1750431470869,27.86758,2494.9,2494.7,0.80163]
[1750431471068,27.066,2494.8,2494.5,3.2078]
[1750431471269,0.80161,2494.8,2494.6,0.80166]
[1750431471473,27.066,2494.7,2494.6,0.80166]
[1750431472473,0.8016,2494.8,2494.7,0.80163]
[1750431472474,27.068,2494.8,2494.7,0.80163]
[1750431473360,27.068,2494.8,2494.5,3.2078]
[1750431473361,0.80168,2494.6,2494.4,1.3843]
[1750431473567,0.8017,2494.5,2494.4,0.80171]
[1750431474164,7.878,2494.7,2494.4,0.80171]
[1750431474364,9.88211,2494.7,2494.1,5.2629]
[1750431474565,9.2218,2494.7,2494.4,0.8017]
[1750431474762,2.0042,2494.6,2494.1,3.8786]
[1750431474969,0.80179,2494.2,2494.1,4.0096]
[1750431475165,30.2748,2494.4,2493.8,3.2078]
[1750431475470,30.2748,2494.4,2493.7,1.2535]
[1750431475471,0.80182,2494.2,2493.7,1.2535]
[1750431475669,0.80186,2494.0,2493.9,0.80187]
[1750431475869,27.067,2494.0,2493.8,0.8019]
[1750431476072,0.80189,2493.9,2493.8,0.8019]
[1750431476265,27.86888,2494.0,2493.9,0.80189]
[1750431476470,27.067,2494.0,2493.7,0.80194]
[1750431476671,27.067,2494.0,2493.8,0.80192]
[1750431476871,27.067,2494.0,2493.8,3.2078]
[1750431477077,0.80189,2493.9,2493.8,3.2078]
[1750431477376,27.86888,2494.0,2493.9,0.80189]
[1750431477675,27.86885,2494.0,2493.9,0.80189]
[1750431477875,27.86887,2494.0,2493.9,0.80189]
[1750431478072,27.067,2494.0,2493.9,0.80189]
[1750431478275,27.86885,2494.0,2493.9,0.80189]
[1750431478576,27.86887,2494.0,2493.9,0.80189]
[1750431478776,0.8019,2493.9,2493.8,0.8019]
[1750431478973,27.86886,2494.0,2493.9,0.80189]
[1750431479177,27.067,2494.0,2493.9,0.80189]
[1750431479674,0.8019,2493.9,2493.8,0.8019]
[1750431479875,0.80186,2494.1,2493.7,3.2078]
[1750431480068,3.2078,2494.4,2493.8,2.0048]
[1750431480267,27.067,2494.6,2494.2,3.2078]
[1750431480581,27.067,2494.6,2494.1,5.21235]
[1750431480768,27.067,2494.6,2494.5,0.80169]
[1750431480972,27.068,2495.1,2494.5,3.2078]
[1750431481278,2.00417,2494.6,2493.8,3.2078]
[1750431481474,0.80178,2494.3,2494.2,0.80177]
[1750431481976,27.068,2494.5,2494.4,0.80173]
[1750431482183,0.80175,2494.4,2494.3,0.80174]
[1750431482371,3.2078,2494.7,2494.1,3.2078]
[1750431482679,27.8696,2494.8,2494.7,0.80159]
[1750431483178,27.068,2494.8,2494.7,0.80159]
[1750431483368,0.01606,2495.3,2494.8,2.004]
[1750431483573,0.01606,2495.3,2495.2,4.00927]
[1750431484076,0.01606,2495.3,2494.8,2.67008]
[1750431484077,0.01606,2495.3,2495.1,0.80149]
[1750431484274,0.81752,2495.3,2495.2,0.80147]
[1750431484469,0.01606,2495.3,2495.2,4.00927]
[1750431485175,0.01606,2495.3,2495.2,0.80147]
[1750431485377,0.01606,2495.3,2495.0,1.2712]
[1750431485378,0.80147,2495.2,2495.1,0.8015]
[1750431485578,0.81753,2495.3,2495.2,0.80147]
[1750431486176,0.01606,2495.3,2495.2,0.80147]
[1750431486482,0.01606,2495.3,2495.2,4.00927]
[1750431486683,0.01606,2495.3,2495.0,1.2712]
[1750431486684,0.8175,2495.3,2495.0,1.2712]
[1750431486882,0.01606,2495.3,2495.0,1.2712]
[1750431487281,0.01606,2495.3,2495.2,0.80147]
[1750431487883,0.8175,2495.3,2495.2,0.80147]
[1750431488484,0.01606,2495.3,2495.2,0.80147]
[1750431490480,0.80149,2495.2,2494.9,4.5887]
[1750431490675,0.01606,2495.3,2495.2,0.80147]
[1750431490876,0.01606,2495.3,2495.2,4.00927]
[1750431492483,0.80151,2495.1,2495.0,0.80154]
[1750431493380,0.80154,2495.0,2494.9,3.2078]
[1750431494183,0.01606,2495.3,2494.9,3.2078]
[1750431494388,7.89306,2495.3,2494.9,4.00936]
[1750431494685,0.80154,2495.0,2494.9,4.00936]
[1750431494885,0.80153,2495.1,2495.0,0.80154]
[1750431495087,0.80154,2495.0,2494.9,3.2078]
[1750431495277,2.00386,2495.0,2494.5,3.2078]
[1750431495483,0.80162,2494.8,2494.7,0.80161]
[1750431495684,3.2078,2495.2,2494.5,5.21204]
[1750431495889,0.01606,2495.3,2495.2,0.80147]
[1750431496082,0.01606,2495.3,2495.2,4.00927]
[1750431497389,0.80147,2495.2,2495.1,0.80148]
[1750431497792,0.81751,2495.3,2495.2,0.80147]
[1750431498088,0.01606,2495.3,2495.2,0.80147]
[1750431498389,0.01606,2495.3,2495.2,4.00927]
[1750431498892,0.80129,2495.8,2495.7,0.80128]
[1750431499186,0.80124,2496.0,2495.6,2.00337]
[1750431499384,0.80135,2495.7,2495.6,0.80133]
[1750431500287,36.2054,2496.1,2495.5,3.2078]
[1750431500487,0.80127,2495.9,2495.8,0.80126]
[1750431500684,0.80132,2495.8,2495.7,0.8013]
[1750431500991,0.80127,2495.9,2495.8,0.80125]
[1750431501190,2.00278,2496.4,2495.8,0.80125]
[1750431501191,2.00249,2496.7,2495.8,11.0758]
[1750431501393,0.80104,2496.6,2496.5,0.80104]
[1750431501588,0.80096,2496.9,2496.7,0.80097]
[1750431501795,2.0319,2497.1,2496.5,3.2078]
[1750431502089,0.801,2496.7,2496.6,0.80102]
[1750431502286,3.2078,2496.9,2496.3,1.309]
[1750431502492,0.80105,2496.6,2496.4,0.80107]
[1750431502696,5.21045,2496.5,2495.7,7.868]
[1750431502895,3.2078,2496.2,2495.6,3.2078]
[1750431503095,0.80123,2496.0,2495.9,0.80125]
[1750431503481,1.3398,2496.1,2495.6,3.2078]
[1750431503688,0.80131,2495.7,2495.6,3.2078]
[1750431503894,20.75918117,2496.0,2495.4,0.6254]
[1750431504100,3.2078,2495.7,2494.9,3.2078]
[1750431504284,0.80152,2495.1,2494.9,3.2078]
[1750431504488,0.80152,2495.1,2494.6,3.2078]
[1750431504489,34.909,2495.0,2494.6,3.2078]
[1750431504688,3.2078,2494.8,2494.3,0.80176]
[1750431504887,1.2676,2494.7,2494.2,3.2078]
[1750431505098,0.80167,2494.6,2494.5,3.2078]
[1750431505291,0.8017,2494.5,2494.3,0.80175]
[1750431505491,0.8017,2494.5,2494.4,3.2078]
[1750431505687,11.13861,2494.9,2494.4,3.2078]
[1750431505688,1.2676,2494.9,2494.4,3.2078]
[1750431505894,36.1736,2494.9,2494.4,3.2078]
[1750431506198,30.2468,2495.2,2494.8,0.80159]
[1750431506592,30.2468,2495.2,2494.5,1.3029]
[1750431506593,0.80167,2494.6,2494.5,1.3029]
[1750431506798,31.5144,2495.2,2494.5,0.80169]
[1750431506799,2.00391,2495.0,2494.5,0.80169]
[1750431507000,2.00377,2495.1,2494.5,0.80168]
[1750431507195,0.80165,2494.7,2494.4,3.2078]
[1750431507398,0.80173,2494.4,2494.1,3.2078]
[1750431507604,5.12135,2494.9,2494.1,4.5789]
[1750431507896,3.11737,2494.9,2494.1,4.5789]
[1750431508098,0.80161,2494.8,2494.7,0.80162]
[1750431508491,3.2078,2495.2,2494.6,3.2078]
[1750431508690,42.0439,2495.5,2495.0,0.80153]
[1750431508895,2.00353,2495.4,2494.9,0.80157]
[1750431509195,0.80152,2495.1,2495.0,0.80154]
[1750431509695,0.80149,2495.2,2495.1,0.80149]
[1750431509896,0.80145,2495.3,2494.7,1.3711]
[1750431510097,0.80151,2495.1,2495.0,0.80153]
[1750431510294,0.80149,2495.2,2495.1,0.80149]
[1750431510495,0.80151,2495.1,2495.0,0.80152]
[1750431510699,31.5444,2495.5,2494.8,3.37508]
[1750431510902,0.8015,2495.2,2494.8,1.3711]
[1750431511098,0.80143,2495.4,2495.3,0.80142]
[1750431511298,3.2078,2495.5,2495.4,0.80141]
[1750431511299,4.00919,2495.5,2495.4,0.80141]
[1750431511508,3.2078,2495.8,2495.5,0.80136]
[1750431511695,28.21456984,2495.7,2495.0,2.74452]
[1750431512005,3.2078,2495.8,2495.3,2.00361]
[1750431512201,3.2078,2495.8,2495.7,0.80131]
[1750431512403,2.31102183,2496.4,2495.7,0.80131]
[1750431512404,0.31626292,2496.5,2495.8,2.00321]
[1750431512604,0.8011,2496.4,2496.3,0.8011]
[1750431513312,3.2078,2496.4,2495.9,1.2558]
[1750431513500,0.80125,2495.9,2495.8,3.0]
[1750431514700,2.19085,2495.9,2495.8,3.0]
[1750431515604,0.80144,2495.3,2495.2,0.6547]
[1750431515806,0.80144,2495.3,2495.2,1.45617]
[1750431516102,4.02947,2495.9,2495.2,0.6547]
[1750431516301,4.02947,2495.9,2495.2,2.0278]
[1750431516504,0.8014,2495.5,2495.4,0.8014]
[1750431516908,0.80137,2495.6,2495.5,0.80137]
[1750431517107,0.80134,2495.7,2495.3,3.2078]
[1750431517302,1.3896,2495.9,2495.3,3.2078]
[1750431517505,0.80144,2495.3,2495.2,1.45617]
[1750431517802,0.80144,2495.3,2495.2,0.6547]
[1750431518009,2.00351,2495.5,2495.0,7.867]
[1750431518201,0.80149,2495.2,2495.1,0.80149]
[1750431518502,3.2078,2495.6,2494.9,12.421]
[1750431518702,0.80139,2495.5,2495.4,0.80139]
[1750431519000,0.80137,2495.6,2495.5,0.80137]
[1750431519204,0.80132,2495.7,2495.6,0.80133]
[1750431519401,0.80137,2495.6,2495.4,1.3462]
[1750431519604,0.80133,2495.7,2495.4,1.3462]
[1750431519807,4.505,2495.9,2495.5,0.80136]
[1750431520006,0.80137,2495.6,2495.4,1.3462]
[1750431520201,6.50819,2495.9,2495.5,0.80137]
[1750431520396,3.2078,2495.9,2495.5,0.80136]
[1750431520602,1.2972,2495.8,2495.3,3.2078]
[1750431520903,0.80141,2495.4,2495.1,1.3894]
[1750431521207,0.80148,2495.2,2495.1,0.80149]
[1750431521406,0.80146,2495.3,2495.2,0.80147]
[1750431521608,0.80145,2495.3,2495.2,0.80146]
[1750431521808,0.80148,2495.2,2495.1,0.80149]
[1750431522012,0.80147,2495.2,2495.1,0.80149]
[1750431522210,0.80151,2495.1,2495.0,0.80153]
[1750431522402,1.2972,2495.5,2495.0,2.00385]
[1750431522602,0.80142,2495.4,2495.3,0.80143]
[1750431522907,2.00353,2495.4,2494.9,4.00935]
[1750431523107,0.80154,2495.0,2494.9,4.00935]
[1750431523802,0.80154,2495.0,2494.6,1.3805]
[1750431523803,0.80163,2494.7,2494.6,4.5883]
[1750431524108,0.80163,2494.7,2494.6,3.2078]
[1750431524304,0.80173,2494.4,2494.3,3.22238]
[1750431524604,0.80172,2494.5,2494.4,0.80171]
[1750431525012,0.80171,2494.5,2494.4,0.8017]
[1750431525303,0.80173,2494.4,2494.3,3.22238]
[1750431525803,0.80173,2494.4,2494.3,0.01458]
[1750431526499,5.21162,2495.1,2494.3,0.01458]
[1750431526706,0.8017,2494.5,2494.4,0.80171]
[1750431526900,0.8017,2494.5,2494.3,1.38578]
[1750431526901,0.80169,2494.6,2494.3,1.38578]
[1750431527100,2.00393,2494.9,2494.4,0.80172]
[1750431527307,0.80171,2494.5,2494.4,0.80172]
[1750431527809,1.2534,2494.9,2494.3,7.59358]
[1750431528105,0.80172,2494.5,2494.3,7.02411]
[1750431528328,0.80173,2494.4,2494.3,6.22238]
[1750431528504,0.80186,2494.0,2493.9,3.2078]
[1750431528713,27.017,2494.2,2493.9,0.80187]
[1750431529005,3.2078,2494.0,2493.5,0.6544]
[1750431529199,3.2078,2493.7,2493.1,1.3241]
[1750431529406,0.80231,2492.6,2492.5,3.2078]
[1750431529604,0.80231,2492.6,2492.2,3.2078]
[1750431529605,0.80241,2492.3,2492.2,3.2078]
[1750431529810,18.73613117,2492.6,2491.8,3.2078]
[1750431529811,1.3209,2492.5,2491.8,3.2078]
[1750431530108,0.80247,2492.1,2491.9,0.80252]
[1750431530306,1.64081033,2492.5,2492.1,0.80247]
[1750431530307,0.80237,2492.4,2492.1,0.80247]
[1750431530504,0.80241,2492.3,2492.0,0.80248]
[1750431530707,1.3209,2492.5,2491.9,1.3241]
[1750431530912,0.80246,2492.2,2491.9,2.12662]
[1750431531212,34.862,2492.5,2492.1,3.2078]
[1750431531406,1.3209,2492.7,2492.4,3.2078]
[1750431531611,27.81532,2492.6,2492.3,0.80239]
[1750431532110,34.871,2492.8,2492.0,3.2078]
[1750431532414,34.871,2492.8,2492.3,0.80238]
[1750431532709,0.80233,2492.6,2492.0,3.2078]
[1750431532899,2.08779,2492.7,2492.4,0.80236]
[1750431533102,12.17363117,2492.7,2492.0,3.2078]
[1750431533303,0.80236,2492.5,2492.2,0.80242]
[1750431533504,12.17363117,2492.7,2492.0,3.2078]
[1750431533806,1.2855,2492.4,2492.0,3.2078]
[1750431534006,10.88813117,2492.1,2491.6,0.80262]
[1750431534211,10.88813117,2492.1,2491.3,3.2078]
[1750431534212,3.2078,2491.9,2491.3,3.2078]
[1750431534513,27.018,2492.0,2491.6,3.2078]
[1750431534708,27.018,2492.0,2491.4,2.0066]
[1750431535209,11.0598,2492.4,2492.3,0.80241]
[1750431535408,34.875,2492.4,2492.0,2.00626]
[1750431535608,34.875,2492.4,2492.3,0.80241]
[1750431535910,7.852,2492.7,2492.6,0.80231]
[1750431536211,46.83,2493.0,2492.6,0.80231]
[1750431536212,7.852,2493.0,2492.9,0.80221]
[1750431536405,3.2078,2493.1,2493.0,0.80218]
[1750431536706,27.021,2493.2,2492.7,2.00569]
[1750431536909,10.88813117,2493.5,2492.9,2.00549]
[1750431537107,46.211,2493.6,2493.4,0.80205]
[1750431537108,48.3759,2493.6,2493.4,0.80205]
[1750431537301,1.3629,2493.5,2493.4,0.80205]
[1750431537506,34.873,2493.5,2492.9,3.38872]
[1750431537704,3.2078,2494.0,2493.8,0.8019]
[1750431537911,1.2793,2493.9,2493.8,0.8019]
[1750431538205,4.00968,2494.0,2493.9,0.80189]
[1750431538206,3.2078,2494.0,2493.9,0.80189]
[1750431538410,38.88367,2494.0,2493.8,0.80191]
[1750431538609,48.96993117,2494.0,2493.3,3.2078]
[1750431538805,48.96993117,2494.0,2493.2,2.0053]
[1750431538806,0.80194,2493.8,2493.2,2.0053]
[1750431539012,0.80196,2493.7,2493.5,0.802]
[1750431539202,0.80194,2493.8,2493.7,0.80196]
[1750431539405,3.2078,2494.0,2493.3,4.4936]
[1750431539609,27.82091,2493.9,2493.3,4.4936]
[1750431539814,27.82091,2493.9,2493.5,3.0]
[1750431540007,0.80192,2493.8,2493.5,3.0]
[1750431540210,0.80199,2493.6,2493.5,3.0]
[1750431540416,8.65499,2493.6,2493.5,3.0]
[1750431540613,13.65499,2493.6,2493.5,0.11293337]
[1750431540811,61.14929,2493.6,2493.5,0.11293337]
[1750431541609,4.01037,2493.4,2492.3,1.9687]
[1750431541809,10.88813117,2492.8,2492.4,0.80236]
[1750431542010,0.80236,2492.5,2492.3,0.80239]
[1750431542214,0.80241,2492.3,2492.2,0.80243]
[1750431542416,0.80232,2492.6,2492.1,5.21398]
[1750431542607,27.014,2492.8,2492.2,1.3457]
[1750431542805,2.00578,2492.6,2492.0,3.2078]
[1750431543006,5.21369,2492.5,2491.7,6.55998]
[1750431543220,0.80249,2492.1,2492.0,0.8025]
[1750431543414,27.81544,2492.3,2492.0,3.2078]
[1750431543617,7.854,2492.5,2492.0,5.21401]
[1750431543816,3.2078,2492.8,2492.4,0.80237]
[1750431544119,0.80235,2492.5,2492.1,1.3457]
[1750431544618,34.869,2492.7,2492.1,1.3457]
[1750431544824,34.869,2492.7,2491.8,2.00642]
[1750431544825,1.3476,2492.6,2491.8,2.00642]
[1750431545118,1.3476,2492.6,2492.0,3.2078]
[1750431545318,0.80242,2492.3,2492.2,0.80243]
[1750431545814,1.3476,2492.6,2492.1,2.00618]
[1750431546022,1.3476,2492.6,2492.1,1.274]
[1750431546414,0.80239,2492.4,2492.3,0.80239]
[1750431546613,0.80243,2492.3,2492.1,2.07645]
[1750431547019,27.8154,2492.4,2491.8,2.0064]
[1750431547224,3.2078,2492.8,2492.2,3.2078]
[1750431547420,0.80242,2492.3,2492.2,0.80242]
[1750431547714,0.80243,2492.3,2492.2,0.80243]
[1750431547913,0.80246,2492.2,2492.1,0.80246]
[1750431548115,0.80243,2492.3,2492.2,0.80244]
[1750431548313,27.81338,2492.4,2492.3,0.80239]
[1750431548517,0.80241,2492.3,2492.2,4.01022]
[1750431548924,0.80241,2492.3,2492.2,3.2078]
[1750431549112,27.011,2492.4,2492.3,0.80241]
[1750431549516,27.81337,2492.4,2492.3,0.80241]
[1750431549818,0.80241,2492.3,2492.2,3.2078]
[1750431550117,27.81339,2492.4,2492.2,3.2078]
[1750431550324,0.80241,2492.3,2492.2,3.2078]
[1750431550523,2.13381,2492.3,2492.2,3.2078]
[1750431551616,12.21953117,2492.6,2492.2,3.2078]
[1750431551817,0.80239,2492.4,2492.3,0.80239]
[1750431552313,0.80241,2492.3,2492.2,3.2078]
[1750431552512,0.80241,2492.3,2491.6,0.6699]
[1750431552513,0.80257,2491.8,2491.7,3.2078]
[1750431552816,0.80272,2491.4,2491.2,0.80276]
[1750431553012,0.80272,2491.4,2490.0,1.40366014]
[1750431553013,3.2078,2491.3,2490.0,4.61146014]
[1750431553330,3.2078,2490.8,2490.1,1.936]
[1750431553523,30.2138,2490.8,2490.1,1.936]
[1750431554121,3.2078,2490.5,2490.2,0.80308]
[1750431554419,3.2078,2490.5,2490.1,4.936]
[1750431554624,3.2078,2490.5,2490.1,3.0]
[1750431554822,3.2078,2490.5,2490.1,3.80309]
[1750431555023,3.2078,2490.5,2490.2,0.80306]
[1750431555225,27.003,2490.4,2490.2,0.80306]
[1750431555423,27.003,2490.4,2490.1,8.30039]
[1750431555621,1.3554,2490.7,2490.1,7.4973]
[1750431556015,27.009,2490.6,2490.1,7.4973]
[1750431556324,27.008,2490.5,2490.1,7.4973]
[1750431556521,27.008,2490.5,2490.3,0.80305]
[1750431556717,27.008,2490.5,2490.1,7.4973]
[1750431556718,3.2078,2490.8,2490.1,7.4973]
[1750431556920,30.2148,2490.8,2490.4,0.80302]
[1750431557329,30.2148,2490.8,2490.5,0.80297]
[1750431557527,30.2148,2490.8,2490.2,1.3647]
[1750431557528,3.2078,2490.8,2490.7,0.80292]
[1750431557724,4.5661,2491.1,2490.8,0.80287]
[1750431557915,3.2078,2491.1,2491.0,0.80282]
[1750431558117,4.4078817,2491.1,2491.0,0.80282]
[1750431558627,4.4078817,2491.1,2490.7,1.3647]
[1750431558628,27.005,2491.4,2491.1,0.80276]
[1750431558829,1.19976721,2491.3,2491.2,0.80276]
[1750431559129,1.19976721,2491.3,2490.8,2.00723]
[1750431559427,3.2078,2491.5,2491.4,0.80269]
[1750431559615,1.20058657,2491.5,2491.4,0.80268]
[1750431559820,27.007,2491.8,2491.1,3.2078]
[1750431560025,27.007,2491.8,2491.7,0.8026]
[1750431560225,28.20746628,2491.8,2491.7,0.8026]
[1750431560420,1.20046628,2491.8,2491.7,0.8026]
[1750431560625,30.2128,2492.1,2491.5,2.00666]
[1750431560822,1.20077978,2492.0,2491.5,2.00666]
[1750431561133,27.004,2492.4,2491.7,3.2078]
[1750431561324,1.20078314,2492.3,2492.1,0.80245]
[1750431561632,1.20078314,2492.2,2492.1,0.80245]
[1750431561830,27.003,2492.4,2492.3,0.8024]
[1750431562020,28.20412584,2492.4,2491.7,3.2078]
[1750431562325,1.20112584,2492.3,2492.2,0.80244]
[1750431562529,3.2078,2492.6,2492.5,0.80234]
[1750431562721,4.40856503,2492.6,2492.5,0.80234]
[1750431562922,3.2078,2492.6,2492.5,0.80234]
[1750431563222,27.0,2492.9,2492.8,0.80224]
[1750431563430,29.00305655,2492.9,2492.7,0.80225]
[1750431563617,2.00307655,2492.8,2492.5,2.07382]
[1750431563824,27.80223,2492.9,2492.7,0.80227]
[1750431564024,1.2008615,2492.8,2492.7,0.80228]
[1750431564227,3.2078,2493.4,2492.7,9.01008]
[1750431564429,1.20099924,2493.3,2492.8,1.2715]
[1750431564727,3.85170305,2494.3,2493.2,3.2078]
[1750431564728,3.2078,2493.7,2493.2,3.2078]
[1750431564923,1.20116769,2493.6,2493.2,0.80209]
[1750431565123,2.00320769,2493.5,2493.2,0.80209]
[1750431565324,0.80213,2493.2,2493.0,0.80217]
[1750431565527,3.2078,2493.4,2492.9,2.7579]
[1750431565727,0.80218,2493.0,2492.9,1.9557]
[1750431565921,0.80218,2493.0,2492.9,0.6842]
[1750431566121,0.80216,2493.1,2492.9,1.48641]
[1750431566321,0.80218,2493.0,2492.9,1.48641]
[1750431566524,0.80216,2493.1,2492.9,1.4864]
[1750431566924,0.80216,2493.1,2492.9,1.48641]
[1750431567123,0.80213,2493.2,2492.9,0.6842]
[1750431567323,26.991,2493.3,2492.8,3.2078]
[1750431567625,3.2078,2493.4,2492.8,3.2078]
[1750431567830,0.80217,2493.1,2492.9,0.8022]
[1750431568027,0.80218,2493.0,2492.9,0.8022]
[1750431568332,0.80216,2493.1,2492.9,0.8022]
[1750431568731,0.80216,2493.1,2492.8,3.2078]
[1750431568929,3.2078,2493.7,2492.8,19.09593117]
[1750431569126,2.31102183,2494.1,2493.6,3.2078]
[1750431569428,0.80184,2494.1,2493.7,1.3194]
[1750431569625,0.80192,2493.8,2493.7,1.3194]
[1750431569830,0.80197,2493.7,2493.4,3.2078]
[1750431570030,3.2078,2494.0,2493.2,1.3194]
[1750431570229,30.1888,2494.0,2493.2,1.3194]
[1750431570427,12.89295117,2493.8,2493.2,1.3194]
[1750431570635,12.89295117,2493.8,2492.8,1.3194]
[1750431570636,0.80199,2493.6,2492.8,1.3194]
[1750431570930,0.80214,2493.2,2493.0,0.80217]
[1750431571130,4.5883,2493.7,2492.8,1.3194]
[1750431571131,1.3805,2493.5,2492.8,1.3194]
[1750431571432,34.798,2493.6,2492.8,1.3194]
[1750431571627,36.1543,2493.6,2492.9,3.2078]
[1750431571824,0.80209,2493.3,2493.1,0.80213]
[1750431572034,36.1543,2493.6,2492.9,3.2078]
[1750431572227,0.80204,2493.5,2493.0,1.3758]
[1750431572428,0.80205,2493.4,2493.0,1.3758]
[1750431572634,36.1543,2493.6,2493.0,1.3758]
[1750431573029,0.80208,2493.3,2493.2,0.80211]
[1750431573233,0.80207,2493.4,2493.3,0.80208]
[1750431573427,0.80213,2493.2,2493.0,0.80215]
[1750431573633,36.1543,2493.6,2492.9,3.2078]
[1750431573834,0.8021,2493.3,2492.9,3.2078]
[1750431574037,3.2078,2493.0,2492.2,3.2078]
[1750431574232,30.1738,2493.0,2492.5,0.80233]
[1750431574432,30.1738,2493.0,2492.6,0.80229]
[1750431574433,0.80226,2492.8,2492.6,0.80229]
[1750431574627,0.80228,2492.7,2492.5,0.80232]
[1750431575232,0.80222,2492.9,2492.7,0.80226]
[1750431575533,0.80228,2492.7,2492.6,0.8023]
[1750431575734,2.00554,2492.9,2492.3,1.3556]
[1750431575928,0.8023,2492.7,2492.3,1.3556]
[1750431576527,1.3201,2492.9,2492.3,1.3556]
[1750431576730,0.8024,2492.3,2492.2,3.2078]
[1750431577237,3.2078,2493.0,2492.7,0.80226]
[1750431577538,0.80227,2492.8,2492.7,0.80226]
[1750431577728,0.80231,2492.6,2492.4,1.3596]
[1750431577929,0.80228,2492.7,2492.6,0.80229]
[1750431578328,0.80232,2492.6,2492.5,0.80232]
[1750431579134,0.80227,2492.8,2492.7,0.80227]
[1750431579327,0.80231,2492.6,2492.5,0.80231]
[1750431579535,0.8023,2492.7,2492.6,0.8023]
[1750431580231,41.3677,2493.0,2492.4,1.3596]
[1750431580436,0.80232,2492.6,2492.5,0.80232]
[1750431580638,0.80234,2492.5,2492.4,2.16196]
[1750431581132,28.95957,2492.9,2492.3,0.80239]
[1750431581133,0.80239,2492.4,2492.3,0.80239]
[1750431581442,3.2078,2492.6,2492.0,0.6475]
[1750431581742,0.80235,2492.5,2492.4,0.80237]
[1750431581931,3.2078,2492.6,2492.2,3.2078]
[1750431582131,0.80236,2492.5,2492.4,0.80236]
[1750431582337,3.2078,2492.6,2492.2,3.2078]
[1750431582534,0.80243,2492.3,2492.2,0.80243]
[1750431582834,1.3413,2492.5,2492.0,0.6475]